Workbook

Sheet 绿化栽植
A1: 雄安新区2019年植树造林项目（秋季）生态游憩林部分施工总承包第二标段 绿化栽植招标报价清单
A2: 序号 | B2: 项目名称 | C2: 品种 | D2: 规格 | E2: 计量 单位 | F2: 暂估工程数量 | H2: 全费用单价 | I2: 合计 | J2: 备注
F3: 明细数量 | G3: 报价数量
C4: 合计 | F4: =SUM(F5:F46) -> 87192 | I4: =SUM(I5:I46) -> 0
A5: 1 | B5: 3cm及以下 | C5: 国槐 | D5: 3-3.9 | E5: 株 | F5: 1578 | G5: =SUM(F5) -> 1578 | I5: =G5*H5 -> 0
A6: 2 | B6: 4cm及以下 | C6: 国槐 | D6: 4-4.9 | E6: 株 | F6: 1587 | G6: =SUM(F6) -> 1587 | I6: 0
A7: 3 | B7: 5cm及以下 | C7: 国槐 | D7: 5-5.9 | E7: 株 | F7: 3189 | G7: =SUM(F7:F8) -> 5275 | I7: 0
A8: 4 | C8: 金丝楸 | D8: 5-5.9 | E8: 株 | F8: 2086
A9: 5 | B9: 6cm及以下 | C9: 国槐 | D9: 6-6.9 | E9: 株 | F9: 2233 | G9: =SUM(F9:F12) -> 5458 | I9: =G9*H9 -> 0
A10: 6 | C10: 金丝楸 | D10: 6-6.9 | E10: 株 | F10: 1801
A11: 7 | C11: 金叶榆 | D11: 6-6.9 | E11: 株 | F11: 616
A12: 8 | C12: 臭椿 | D12: 6-6.9 | E12: 株 | F12: 808
A13: 9 | B13: 7cm及以下 | C13: 银杏 | D13: 7-7.9 | E13: 株 | F13: 1198 | G13: =SUM(F13:F17) -> 5587 | I13: =G13*H13 -> 0
A14: 10 | C14: 国槐 | D14: 7-7.9 | E14: 株 | F14: 1905
A15: 11 | C15: 金丝楸 | D15: 7-7.9 | E15: 株 | F15: 964
A16: 12 | C16: 金叶榆 | D16: 7-7.9 | E16: 株 | F16: 557
A17: 13 | C17: 臭椿 | D17: 7-7.9 | E17: 株 | F17: 963
A18: 14 | B18: 8cm及以下 | C18: 银杏 | D18: 8-8.9 | E18: 株 | F18: 1226 | G18: =SUM(F18:F22) -> 5347 | I18: =G18*H18 -> 0
A19: 15 | C19: 国槐 | D19: 8-8.9 | E19: 株 | F19: 2182
A20: 16 | C20: 金丝楸 | D20: 8-8.9 | E20: 株 | F20: 291
A21: 17 | C21: 金叶榆 | D21: 8-8.9 | E21: 株 | F21: 799
A22: 18 | C22: 臭椿 | D22: 8-8.9 | E22: 株 | F22: 849
A23: 19 | B23: 9cm及以下 | C23: 银杏 | D23: 9-9.9 | E23: 株 | F23: 666 | G23: =SUM(F23:F24) -> 1949 | I23: =G23*H23 -> 0
A24: 20 | C24: 国槐 | D24: 9-9.9 | E24: 株 | F24: 1283
A25: 21 | B25: 10cm及以下 | C25: 银杏 | D25: 10-10.9 | E25: 株 | F25: 501 | G25: 2354 | I25: 0
A26: 22 | C26: 国槐 | D26: 10-10.9 | E26: 株 | F26: 1853
A27: 23 | B27: 3cm及以下 | C27: 紫玉兰 | D27: D3-3.9 | E27: 株 | F27: 1420 | G27: 3534 | I27: 0
A28: 24 | C28: 山桃 | D28: D3-3.9 | E28: 株 | F28: 2114
A29: 25 | B29: 4cm及以下 | C29: 白玉兰 | D29: D4-4.9 | E29: 株 | F29: 1805 | G29: =SUM(F29:F34) -> 17260 | I29: =G29*H29 -> 0
A30: 26 | C30: 紫玉兰 | D30: D4-4.9 | E30: 株 | F30: 1789
A31: 27 | C31: 樱花 | D31: D4-4.9 | E31: 株 | F31: 6731
A32: 28 | C32: 中华太阳李 | D32: D4-4.9 | E32: 株 | F32: 2890
A33: 29 | C33: 文冠果 | D33: D4-4.9 | E33: 株 | F33: 1916
A34: 30 | C34: 山桃 | D34: D4-4.9 | E34: 株 | F34: 2129
A35: 31 | B35: 5cm及以下 | C35: 白玉兰 | D35: D5-5.9 | E35: 株 | F35: 2957 | G35: =SUM(F35:F40) -> 15720 | I35: =G35*H35 -> 0
A36: 32 | C36: 紫玉兰 | D36: D5-5.9 | E36: 株 | F36: 1277
A37: 33 | C37: 樱花 | D37: D5-5.9 | E37: 株 | F37: 4372
A38: 34 | C38: 紫叶李 | D38: D5-5.9 | E38: 株 | F38: 2915
A39: 35 | C39: 中华太阳李 | D39: D5-5.9 | E39: 株 | F39: 2124
A40: 36 | C40: 文冠果 | D40: D5-5.9 | E40: 株 | F40: 2075
A41: 37 | B41: 6cm及以下 | C41: 紫叶李 | D41: D6-6.9 | E41: 株 | F41: 2228 | G41: =SUM(F41) -> 2228 | I41: =G41*H41 -> 0
A42: 38 | B42: H80-100 | C42: 金银木 | D42: H80-100 | E42: 株 | F42: 4905 | G42: =SUM(F42:F46) -> 19315 | H42: 0 | I42: =G42*H42 -> 0
A43: 39 | C43: 华北丁香 | D43: H80-100 | E43: 株 | F43: 4244
A44: 40 | C44: 木槿 | D44: H80-100 | E44: 株 | F44: 4045
A45: 41 | C45: 榆叶梅 | D45: H80-100 | E45: 株 | F45: 3494
A46: 42 | C46: 连翘 | D46: H80-100 | E46: 株 | F46: 2627
A47: 1.单价说明：分包人申请付款时必须提供增值税专用发票，综合单价为含税单价。 2.工作内容：配合卸车、苗木倒运至栽植地点、栽植、修剪、树枝归集、涂抹伤口涂抹剂、打设树木支撑。
